[Event "EYTCC Open U12 2018"]
[Site "Bad Blankeburg"]
[Date "2018.07.15"]
[Round "5"]
[White "Levin, Guy"]
[Black "Pasti, Aron"]
[Result "1-0"]
[ECO "A28"]
[WhiteElo "2008"]
[BlackElo "2069"]
[Annotator "NA"]
[PlyCount "81"]
[EventDate "2018.07.12"]
[EventType "swiss"]
[EventCountry "GER"]
[SourceTitle "playchess.com"]
[Source "ChessBase"]
[SourceQuality "1"]
[TimeControl "40/5400+30:1800+30"]

1. c4 {[%emt 0:00:00]} e5 {[%emt 0:00:00]} 2. Nc3 {[%emt 0:00:00]} Nf6 {[%emt 0:00:00]} 3. Nf3 {[%emt 0:00:00]} Nc6 {[%emt 0:00:00]} 4. a3 {[%emt 0:00:21]} d5 {[%emt 0:00:00]} 5. cxd5 {[%emt 0:00:20]} Nxd5 {[%emt 0:00:00]} 6. Qc2 {[%emt 0:00:28]} Be7 {[%emt 0:02:06]} 7. e3 {[%emt 0:02:38]} O-O {[%emt 0:06:43]} 8. Nxd5 {[%emt 0:00:13] A28: Englische Eröffnung (Vierspringer-Variante)} (8. b4 Nxc3 9. dxc3 Qd6 10. Bd3 f5 11. e4 f4 12. h3 a5 13. Bb2 Bf6 14. Rd1 Qe7 15. O-O Be6 {0-1 (38) Carlsen,M (2837)-Bu,X (2730) Riadh 2017}) 8... Qxd5 {[%emt 0:00:07]} 9. Bd3 {[%emt 0:00:28]} h6 {[%emt 0:02:51]} 10. Be4 $146 {[%emt 0:08:41]} ({Vorgänger:} 10. b4 Be6 11. Bh7+ Kh8 12. Be4 Qb5 13. Bb2 Bf6 14. Rc1 Bd5 15. a4 Bxe4 16. axb5 Bxc2 17. bxc6 {1-0 (41) Zaragatski,I (2505)-Berkovich,M (2375) Vlissingen 2013}) 10... Qd6 {[%emt 0:01:45]} 11. b4 {[%emt 0:05:07]} f5 {[%emt 0:05:04]} 12. Bxc6 {[%emt 0:00:21]} bxc6 {[%emt 0:00:04]} 13. Bb2 {[%emt 0:00:46]} Bf6 {[%emt 0:02:11]} 14. d4 {[%emt 0:03:05]} exd4 {[%emt 0:11:03]} 15. Bxd4 {[%emt 0:00:49]} Bxd4 {[%emt 0:04:35]} 16. Nxd4 {[%emt 0:00:09]} Rf6 {[%emt 0:03:38]} 17. O-O {[%emt 0:05:25]} Bd7 {[%emt 0:09:09]} 18. Rfd1 {[%emt 0:06:17]} Qe7 {[%emt 0:05:56]} 19. Rab1 {[%emt 0:13:02]} Raf8 {[%emt 0:04:10]} 20. Qc5 $16 {[%emt 0:00:39]} Rd6 {[%emt 0:12:50]} 21. Nf3 {[%emt 0:14:55]} Be6 {[%emt 0:10:26]} 22. Rxd6 {[%emt 0:07:12]} cxd6 {[%emt 0:00:50]} 23. Qxc6 {[%emt 0:00:46]} Rc8 {[%emt 0:00:17]} 24. Qa6 {[%emt 0:03:50]} Rc3 {[%emt 0:03:51]} 25. Nd4 {[%emt 0:02:44]} Bd5 {[%emt 0:04:17]} 26. Re1 {[%emt 0:09:28]} f4 {[%emt 0:07:37]} 27. Ne2 {[%emt 0:06:04]} Bb7 {[%emt 0:01:51]} 28. Qxa7 {[%emt 0:02:53]} Rc4 {[%emt 0:00:54]} 29. Qb6 {[%emt 0:04:27]} fxe3 {[%emt 0:00:49]} 30. Ng3 {[%emt 0:01:45]} exf2+ {[%emt 0:00:49]} 31. Qxf2 {[%emt 0:00:01]} Qd7 {[%emt 0:00:23]} 32. Qe2 {[%emt 0:00:56]} Rc3 {[%emt 0:00:26]} 33. Qe8+ {[%emt 0:01:42]} Qxe8 {[%emt 0:00:03]} 34. Rxe8+ {[%emt 0:00:01]} Kf7 {[%emt 0:00:10]} 35. Rb8 {[%emt 0:00:24]} Bd5 {[%emt 0:00:19]} 36. a4 {[%emt 0:01:20]} Rc1+ {[%emt 0:00:02]} 37. Kf2 {[%emt 0:00:02]} Rc2+ {[%emt 0:00:06]} 38. Ke3 {[%emt 0:00:39]} Ke6 {[%emt 0:01:06]} 39. Ne2 {[%emt 0:00:19]} Ra2 {[%emt 0:00:11]} 40. Nf4+ {[%emt 0:00:21]} Kd7 {[%emt 0:00:30]} 41. Nxd5 {[%emt 0:30:11]} 1-0

[Event "EYTCC Open U12 2018"]
[Site "Bad Blankeburg"]
[Date "2018.07.15"]
[Round "5"]
[White "Navumenka, Mikhei"]
[Black "Schubert, Nikita"]
[Result "1-0"]
[ECO "A46"]
[WhiteElo "1965"]
[BlackElo "1984"]
[Annotator "NA"]
[PlyCount "99"]
[EventDate "2018.07.12"]
[EventType "swiss"]
[EventCountry "GER"]
[SourceTitle "playchess.com"]
[Source "ChessBase"]
[SourceQuality "1"]
[TimeControl "40/5400+30:1800+30"]

1. d4 {[%emt 0:00:00]} Nf6 {[%emt 0:00:00]} 2. Nf3 {[%emt 0:00:12]} e6 {[%emt 0:00:27]} 3. g3 {[%emt 0:00:09]} d5 {[%emt 0:00:17]} 4. Bg2 {[%emt 0:00:06]} Be7 {[%emt 0:00:07]} 5. O-O {[%emt 0:00:07]} O-O {[%emt 0:00:27]} 6. c4 {[%emt 0:00:11]} dxc4 {[%emt 0:01:19]} 7. Ne5 {[%emt 0:00:53]} c5 {[%emt 0:02:29]} 8. dxc5 {[%emt 0:00:52]} Qc7 {[%emt 0:01:59]} 9. Nxc4 {[%emt 0:07:11]} Qxc5 {[%emt 0:00:45]} 10. b3 {[%emt 0:04:34]} Rd8 {[%emt 0:06:05]} 11. Qe1 {[%emt 0:00:11]} Nc6 {[%emt 0:10:29]} 12. Ba3 {[%emt 0:01:51]} Nb4 {[%emt 0:16:43]} 13. Nc3 {[%emt 0:06:32]} Rb8 {[%emt 0:14:23]} 14. Na4 {[%emt 0:07:35]} Qb5 {[%emt 0:00:58]} 15. Rc1 {[%emt 0:02:53]} Bd7 {[%emt 0:07:28]} 16. Nc3 {[%emt 0:07:18]} Qc5 {[%emt 0:02:12]} 17. e4 {[%emt 0:19:32]} b5 {[%emt 0:08:16]} 18. Nb2 {[%emt 0:02:43]} Qb6 {[%emt 0:00:41]} 19. e5 {[%emt 0:00:19]} Ne8 {[%emt 0:02:54]} 20. Qe2 {[%emt 0:07:53]} Bc6 {[%emt 0:04:36]} 21. Bxb4 {[%emt 0:04:45]} Bxb4 {[%emt 0:01:02]} 22. Nca4 {[%emt 0:02:00]} bxa4 {[%emt 0:11:56]} 23. Rxc6 {[%emt 0:00:11]} Qb5 {[%emt 0:02:05]} 24. Qxb5 {[%emt 0:02:51]} Rxb5 {[%emt 0:00:01]} 25. Nxa4 {[%emt 0:00:13]} Rxe5 {[%emt 0:01:05]} 26. Ra6 {[%emt 0:01:00]} Ra5 {[%emt 0:00:56]} 27. Rc6 {[%emt 0:02:44]} g6 {[%emt 0:00:44]} 28. Rfc1 {[%emt 0:00:25]} Kg7 {[%emt 0:01:12]} 29. h4 {[%emt 0:00:47]} Rd2 {[%emt 0:00:41]} 30. R6c4 {[%emt 0:01:50]} Ba3 {[%emt 0:00:34]} 31. R1c2 {[%emt 0:00:16]} Rd1+ {[%emt 0:00:54]} 32. Kh2 {[%emt 0:00:26]} Nd6 {[%emt 0:00:36]} 33. Rc7 {[%emt 0:02:02]} Nb5 {[%emt 0:00:36]} 34. Rb7 {[%emt 0:00:01]} Rd6 {[%emt 0:00:43]} 35. Rc4 {[%emt 0:02:48]} Rd2 {[%emt 0:00:39]} 36. Rf4 {[%emt 0:01:23]} Nd6 {[%emt 0:00:10]} 37. Rd7 {[%emt 0:00:11]} Rxa2 {[%emt 0:00:28]} 38. Nc3 {[%emt 0:00:41]} Rc2 {[%emt 0:00:42]} 39. Ne4 {[%emt 0:03:16]} Nf5 {[%emt 0:01:00]} 40. g4 {[%emt 0:01:17]} Nh6 {[%emt 0:00:35]} 41. b4 {[%emt 0:31:18]} Ra4 {[%emt 0:05:55]} 42. Ng5 {[%emt 0:00:00]} Bxb4 {[%emt 0:10:15]} 43. Nxe6+ {[%emt 0:00:00]} Kh8 {[%emt 0:00:42]} 44. Rd8+ {[%emt 0:00:00]} Ng8 {[%emt 0:00:46]} 45. Rxf7 {[%emt 0:00:00]} Rd2 {[%emt 0:01:09]} 46. Ra8 {[%emt 0:00:00]} Bd6+ {[%emt 0:00:48]} 47. Kh3 {[%emt 0:00:00]} Ra3+ {[%emt 0:04:03]} 48. f3 {[%emt 0:00:00]} h5 {[%emt 0:08:13]} 49. gxh5 {[%emt 0:00:00]} gxh5 {[%emt 0:02:30]} 50. Ng5 1-0

[Event "EYTCC Open U12 2018"]
[Site "Bad Blankeburg"]
[Date "2018.07.15"]
[Round "5"]
[White "Eilenberg, Jonas"]
[Black "Strybuk, Artsiom I"]
[Result "1/2-1/2"]
[ECO "A57"]
[WhiteElo "1910"]
[BlackElo "2079"]
[Annotator "NA"]
[PlyCount "111"]
[EventDate "2018.07.12"]
[EventType "swiss"]
[EventCountry "GER"]
[SourceTitle "playchess.com"]
[Source "ChessBase"]
[SourceQuality "1"]
[TimeControl "40/5400+30:1800+30"]

1. d4 {[%emt 0:00:00]} Nf6 {[%emt 0:00:02]} 2. c4 {[%emt 0:00:00]} c5 {[%emt 0:00:06]} 3. d5 {[%emt 0:00:00]} b5 {[%emt 0:00:06]} 4. Nd2 {[%emt 0:00:17]} bxc4 {[%emt 0:01:34]} 5. e4 {[%emt 0:00:14]} d6 {[%emt 0:00:05]} 6. Bxc4 {[%emt 0:00:10]} g6 {[%emt 0:01:25]} 7. b3 {[%emt 0:00:07]} Bg7 {[%emt 0:00:33]} 8. Bb2 {[%emt 0:00:13]} O-O {[%emt 0:01:36]} 9. Ngf3 {[%emt 0:00:09]} a5 {[%emt 0:04:33] A57: Wolga/Benkö-Gambit} (9... Nbd7 10. O-O Nb6 11. Qc2 a5 12. a4 Nh5 13. Bxg7 Nxg7 14. Rfe1 e5 15. dxe6 Bxe6 16. Rad1 Qc7 17. Qc3 Rfd8 18. Bb5 d5 19. Rc1 {½-½ (32) Velten,P (2455)-Le Roux,J (2554) Bayonne 2018}) 10. O-O {[%emt 0:03:48]} Ba6 {[%emt 0:05:24]} 11. Re1 {[%emt 0:02:50]} a4 {[%emt 0:09:00]} 12. h3 $146 {[%emt 0:06:03]} ({Vorgänger:} 12. Rb1 axb3 13. axb3 Nbd7 14. Bc3 Qc7 15. e5 dxe5 16. Nxe5 Nb6 17. Qf3 {½-½ (17) Verzhansky,A (2357)-Malchikov,A (2181) Novosibirsk 2007}) 12... Nbd7 {[%emt 0:08:08]} 13. Bxa6 {[%emt 0:02:21]} Rxa6 {[%emt 0:00:20]} 14. Nc4 {[%emt 0:02:03]} Nb6 {[%emt 0:08:39]} 15. Qe2 {[%emt 0:04:53]} Nxc4 {[%emt 0:01:50]} 16. Qxc4 {[%emt 0:01:28]} Rb6 {[%emt 0:02:36]} 17. Bc3 {[%emt 0:02:39]} Qa8 {[%emt 0:05:49]} 18. bxa4 {[%emt 0:05:50]} Qa6 {[%emt 0:05:31]} 19. Nd2 {[%emt 0:03:12]} Nd7 {[%emt 0:08:06]} 20. Bxg7 {[%emt 0:06:25]} Kxg7 {[%emt 0:00:42]} 21. Rab1 {[%emt 0:01:36]} Ra8 {[%emt 0:04:22]} 22. Qc3+ {[%emt 0:05:25]} f6 {[%emt 0:01:27]} 23. Nc4 {[%emt 0:00:30]} Rxb1 {[%emt 0:02:23]} 24. Rxb1 {[%emt 0:01:14]} Ne5 {[%emt 0:04:53]} 25. Nxe5 {[%emt 0:03:46]} fxe5 {[%emt 0:00:32]} 26. f4 {[%emt 0:00:30]} Qxa4 {[%emt 0:01:15]} 27. fxe5 {[%emt 0:03:36]} Qd4+ {[%emt 0:09:39]} 28. Qxd4 {[%emt 0:00:19]} cxd4 {[%emt 0:00:01]} 29. exd6 {[%emt 0:00:59]} exd6 {[%emt 0:00:23]} 30. Rb4 {[%emt 0:01:47]} d3 {[%emt 0:01:34]} 31. Rd4 {[%emt 0:00:16]} Ra3 {[%emt 0:00:58]} 32. Kf2 {[%emt 0:02:54]} Rxa2+ {[%emt 0:04:02]} 33. Kf3 {[%emt 0:00:25]} d2 {[%emt 0:02:54]} 34. Ke2 {[%emt 0:00:38]} d1=Q+ {[%emt 0:01:18]} 35. Kxd1 {[%emt 0:00:04]} Rxg2 {[%emt 0:00:12]} 36. e5 {[%emt 0:02:10]} Kf7 {[%emt 0:01:52]} 37. exd6 $11 {[%emt 0:03:57]} Ke8 {[%emt 0:01:10]} 38. Re4+ {[%emt 0:01:33]} Kd8 {[%emt 0:00:06]} 39. Ra4 {[%emt 0:01:02]} h5 {[%emt 0:00:51]} 40. Ra3 {[%emt 0:02:16]} Kd7 {[%emt 0:00:43]} 41. Ke1 {[%emt 0:30:28]} g5 {[%emt 0:07:28]} 42. Kf1 {[%emt 0:00:00]} Rd2 {[%emt 0:01:45]} 43. Ra7+ {[%emt 0:00:00]} Kxd6 {[%emt 0:00:53]} 44. Ra6+ {[%emt 0:00:00]} Ke5 {[%emt 0:01:49]} 45. Re6+ {[%emt 0:00:00]} Kf4 {[%emt 0:03:08]} 46. Rf6+ {[%emt 0:00:00]} Kg3 {[%emt 0:01:56]} 47. Rf5 {[%emt 0:00:00]} Kh4 {[%emt 0:00:42]} 48. Ke1 {[%emt 0:00:00]} Rd3 {[%emt 0:01:40]} 49. Ke2 {[%emt 0:00:00]} Rxh3 {[%emt 0:07:29]} 50. d6 {[%emt 0:00:00]} Ra3 {[%emt 0:01:32]} 51. d7 {[%emt 0:00:00]} Ra2+ {[%emt 0:01:05]} 52. Ke3 {[%emt 0:00:00]} Ra8 {[%emt 0:03:19]} 53. Rd5 {[%emt 0:00:00]} Rd8 {[%emt 0:00:08]} 54. Kf3 {[%emt 0:00:00]} Rf8+ {[%emt 0:00:13]} 55. Kg2 {[%emt 0:00:00]} Rd8 {[%emt 0:00:25]} 56. Kf3 {[%emt 0:00:00]} 1/2-1/2

[Event "EYTCC Open U12 2018"]
[Site "Bad Blankeburg"]
[Date "2018.07.15"]
[Round "5"]
[White "Bui, Bao Anh Le"]
[Black "Lazavik, Denis"]
[Result "0-1"]
[ECO "C54"]
[WhiteElo "1883"]
[BlackElo "2111"]
[Annotator "NA"]
[PlyCount "122"]
[EventDate "2018.07.12"]
[EventType "swiss"]
[EventCountry "GER"]
[SourceTitle "playchess.com"]
[Source "ChessBase"]
[SourceQuality "1"]
[BlackTeam "Belarus"]
[BlackTeamCountry "BLR"]
[TimeControl "40/5400+30:1800+30"]

1. e4 {[%emt 0:00:00]} e5 {[%emt 0:00:00]} 2. Nf3 {[%emt 0:00:08]} Nc6 {[%emt 0:00:52]} 3. Bc4 {[%emt 0:00:26]} Bc5 {[%emt 0:00:29]} 4. c3 {[%emt 0:00:38]} Nf6 {[%emt 0:00:43]} 5. d3 {[%emt 0:00:07]} d6 {[%emt 0:00:59]} 6. Bb3 {[%emt 0:00:06]} a6 {[%emt 0:01:00]} 7. h3 {[%emt 0:00:21]} h6 {[%emt 0:01:54]} 8. Nbd2 {[%emt 0:00:58]} O-O {[%emt 0:01:55]} 9. Nf1 {[%emt 0:00:19]} Be6 {[%emt 0:02:20]} 10. Ng3 {[%emt 0:01:12]} d5 {[%emt 0:06:12]} 11. Qe2 {[%emt 0:00:30]} Re8 {[%emt 0:02:51]} 12. O-O {[%emt 0:05:32]} Qd7 {[%emt 0:05:06]} 13. Re1 {[%emt 0:02:43]} Rad8 {[%emt 0:09:30]} 14. Nh4 {[%emt 0:08:25]} dxe4 $11 {[%emt 0:14:28]} 15. dxe4 {[%emt 0:01:22]} Qd3 {[%emt 0:04:54]} 16. Qxd3 {[%emt 0:17:30]} Rxd3 {[%emt 0:00:37]} 17. Nhf5 {[%emt 0:00:22]} Bxb3 {[%emt 0:06:26]} 18. axb3 {[%emt 0:01:48]} a5 {[%emt 0:01:52]} 19. Be3 {[%emt 0:03:32]} Bxe3 {[%emt 0:02:24]} 20. Nxe3 {[%emt 0:00:50]} Red8 {[%emt 0:01:30]} 21. f3 {[%emt 0:03:50]} g6 {[%emt 0:04:24]} 22. Rad1 {[%emt 0:04:28]} Rxd1 {[%emt 0:03:25]} 23. Rxd1 {[%emt 0:00:18]} Rxd1+ {[%emt 0:00:34]} 24. Nxd1 {[%emt 0:00:41]} Kf8 {[%emt 0:00:48]} 25. Kf2 {[%emt 0:02:38]} Ke7 {[%emt 0:00:42]} 26. Ne3 {[%emt 0:01:45]} Nd7 {[%emt 0:02:15]} 27. Nd5+ {[%emt 0:07:06]} Kd6 {[%emt 0:00:26]} 28. Ne2 {[%emt 0:02:29]} Nd8 {[%emt 0:04:59]} 29. Nc1 {[%emt 0:04:32]} Ne6 {[%emt 0:01:57]} 30. Nd3 {[%emt 0:04:54]} Ndc5 {[%emt 0:03:02]} 31. Nc1 {[%emt 0:09:23]} Nd7 {[%emt 0:06:37]} 32. g3 {[%emt 0:02:51]} c6 {[%emt 0:02:17]} 33. Ne3 {[%emt 0:00:36]} b5 {[%emt 0:00:43]} 34. h4 {[%emt 0:01:41]} h5 {[%emt 0:02:13]} 35. Ke2 {[%emt 0:01:32]} Ndc5 {[%emt 0:04:35]} 36. Kd2 {[%emt 0:01:53]} Ng7 {[%emt 0:01:20]} 37. Kc2 {[%emt 0:03:02]} Ke6 {[%emt 0:01:00]} 38. Nd3 {[%emt 0:03:23]} Nd7 {[%emt 0:00:16]} 39. b4 {[%emt 0:03:40]} a4 {[%emt 0:00:15]} 40. Nc5+ {[%emt 0:01:07]} Nxc5 {[%emt 0:00:33]} 41. bxc5 {[%emt 0:30:48]} f5 {[%emt 0:03:00]} 42. exf5+ {[%emt 0:00:00]} gxf5 {[%emt 0:00:06]} 43. Kd3 {[%emt 0:00:00]} f4 {[%emt 0:13:43]} 44. gxf4 {[%emt 0:00:00]} exf4 {[%emt 0:00:05]} 45. Nc2 {[%emt 0:00:00]} Kd5 {[%emt 0:00:29]} 46. Nb4+ {[%emt 0:00:00]} Kxc5 {[%emt 0:00:06]} 47. Ke4 {[%emt 0:00:00]} Ne6 {[%emt 0:03:58]} 48. Kf5 {[%emt 0:00:00]} Nd8 {[%emt 0:00:31]} 49. Kg5 {[%emt 0:00:00]} Kc4 {[%emt 0:02:10]} 50. Kxh5 {[%emt 0:00:00]} c5 {[%emt 0:01:02]} 51. Nc2 {[%emt 0:05:16]} Kb3 {[%emt 0:01:05]} 52. Na3 {[%emt 0:00:21]} b4 {[%emt 0:03:51]} 53. Kg6 {[%emt 0:00:23]} bxa3 {[%emt 0:01:37]} 54. bxa3 {[%emt 0:00:03]} Kxa3 {[%emt 0:00:26]} 55. h5 {[%emt 0:00:02]} Kb3 {[%emt 0:01:15]} 56. h6 {[%emt 0:00:25]} Ne6 {[%emt 0:00:05]} 57. Kf6 {[%emt 0:00:59]} Nf8 {[%emt 0:00:36]} 58. Kg7 {[%emt 0:00:14]} a3 {[%emt 0:00:25]} 59. Kxf8 {[%emt 0:00:24]} a2 {[%emt 0:00:04]} 60. h7 {[%emt 0:00:25]} a1=Q {[%emt 0:00:19]} 61. h8=Q {[%emt 0:00:11]} Qa8+ {[%emt 0:00:11]} 0-1

[Event "EYTCC Open U12 2018"]
[Site "Bad Blankeburg"]
[Date "2018.07.16"]
[Round "6"]
[White "Strybuk, Artsiom I"]
[Black "Nitsche, Nikolai"]
[Result "1-0"]
[ECO "C03"]
[WhiteElo "2079"]
[BlackElo "1726"]
[Annotator "NA RC"]
[PlyCount "49"]
[EventDate "2018.07.12"]
[EventType "swiss"]
[EventCountry "GER"]
[SourceTitle "playchess.com"]
[Source "ChessBase"]
[SourceQuality "1"]
[TimeControl "40/5400+30:1800+30"]

1. e4 {[%emt 0:00:00]} e6 {[%emt 0:00:00]} 2. d4 {[%emt 0:00:00]} d5 {[%emt 0:00:38]} 3. Nd2 {[%emt 0:00:00]} Be7 {[%emt 0:00:59]} 4. e5 {[%emt 0:01:24]} c5 {[%emt 0:01:37]} 5. c3 {[%emt 0:01:27]} Nc6 {[%emt 0:00:45]} 6. Ndf3 {[%emt 0:03:24]} Qb6 {[%emt 0:14:38] C03: French Tarrasch: Unusual Black 3rd moves} 7. Bd3 {[%emt 0:04:36]} f6 {[%emt 0:01:47]} 8. Ne2 {[%emt 0:11:29] LiveBook: 6 Games} c4 $146 {[%emt 0:08:32]} ({Predecessor:} 8... fxe5 9. Nxe5 Nxe5 10. dxe5 Bd7 11. O-O Qc7 12. c4 Qxe5 13. Bf4 Qh5 {1-0 (59) Kovalev,V (2598)-Sjugirov,S (2673) Moscow 2017}) 9. exf6 Nxf6 {[%emt 0:05:36]} 10. Bc2 {[%emt 0:07:26]} Bd7 {[%emt 0:00:25]} 11. O-O {[%emt 0:02:51]} O-O {[%emt 0:13:02]} 12. Bg5 {[%emt 0:12:57]} Qxb2 {[%emt 0:09:00]} 13. Rb1 {[%emt 0:04:09]} Qxa2 {[%emt 0:03:32]} 14. Ne5 {[%emt 0:01:50]} Rad8 {[%emt 0:13:00]} 15. Rxb7 {[%emt 0:08:17]} Qa6 {[%emt 0:03:14]} 16. Nxc6 {[%emt 0:05:43]} Qxb7 {[%emt 0:01:22]} 17. Nxe7+ {[%emt 0:02:39]} Kf7 {[%emt 0:01:53]} 18. Nf4 {[%emt 0:05:20]} Kxe7 {[%emt 0:03:13]} 19. Bxh7 {[%emt 0:00:54]} Be8 {[%emt 0:02:50]} 20. Nxe6 {[%emt 0:12:21]} Kxe6 {[%emt 0:05:40]} 21. Re1+ {[%emt 0:00:01]} Kf7 {[%emt 0:01:43] [#]} 22. Bxf6 {[%emt 0:00:51]} ({Stronger than} 22. Qc2 Nxh7 23. Qxh7 Rd6 $15) 22... gxf6 {[%emt 0:01:29]} 23. Qg4 {[%emt 0:00:14]} Rh8 {[%emt 0:01:58]} 24. Qg6+ {[%emt 0:00:08]} Kf8 {[%emt 0:00:06]} 25. Qxf6+ {[%emt 0:00:11]} 1-0

[Event "EYTCC Open U12 2018"]
[Site "Bad Blankeburg"]
[Date "2018.07.16"]
[Round "6"]
[White "Hommer, Jeremy"]
[Black "Kures, Michael"]
[Result "0-1"]
[ECO "B52"]
[WhiteElo "1926"]
[BlackElo "1982"]
[Annotator "NA RC"]
[PlyCount "84"]
[EventDate "2018.07.12"]
[EventType "swiss"]
[EventCountry "GER"]
[SourceTitle "playchess.com"]
[Source "ChessBase"]
[SourceQuality "1"]
[TimeControl "40/5400+30:1800+30"]

1. e4 {[%emt 0:00:00]} c5 {[%emt 0:00:43]} 2. Nf3 {[%emt 0:00:00]} d6 {[%emt 0:00:36]} 3. Bb5+ {[%emt 0:00:34]} Bd7 {[%emt 0:00:16]} 4. Bxd7+ {[%emt 0:02:18]} Nxd7 {[%emt 0:00:22]} 5. O-O {[%emt 0:00:32]} Ngf6 {[%emt 0:03:12]} 6. Re1 {[%emt 0:06:03]} e6 {[%emt 0:02:41]} 7. d4 {[%emt 0:05:55]} cxd4 {[%emt 0:03:06]} 8. Nxd4 {[%emt 0:02:08]} a6 {[%emt 0:00:39] LiveBook: 10 Partien B52: Sizilianisch (Rossolimo-Variante)} (8... Be7 9. c4 O-O 10. b3 Re8 11. Bb2 Nc5 12. Nc3 d5 13. exd5 exd5 14. Nf5 Bf8 15. Rxe8 Qxe8 16. Nxd5 Nxd5 {1-0 (38) Adams,M (2709)-Grandelius,N (2647) Caleta 2018}) 9. Nc3 {[%emt 0:06:31]} Be7 {[%emt 0:01:17]} 10. Be3 {[%emt 0:04:50]} O-O {[%emt 0:01:56]} 11. f3 {[%emt 0:02:25]} Ne5 $146 {[%emt 0:02:12]} ({Vorgänger:} 11... Qc7 12. Nce2 Rac8 13. Rc1 b5 {0-1 (44) Djordjevic,B-Petkovic,M (1953) Nis 2014}) 12. b3 {[%emt 0:05:06]} (12. Bf2 $15) 12... Rc8 {[%emt 0:02:34]} 13. Nce2 {[%emt 0:02:54]} d5 {[%emt 0:02:19]} 14. exd5 {[%emt 0:14:19]} Nxd5 {[%emt 0:01:59]} 15. Bf2 {[%emt 0:00:40]} Bb4 {[%emt 0:06:38]} 16. c3 {[%emt 0:07:13]} Bxc3 {[%emt 0:04:13]} 17. Nxc3 {[%emt 0:00:12]} Nxc3 {[%emt 0:00:17]} 18. Qd2 {[%emt 0:06:46]} Nd7 {[%emt 0:02:34]} 19. Re3 {[%emt 0:09:45]} Nd5 {[%emt 0:00:59]} 20. Re4 {[%emt 0:05:10]} N7f6 {[%emt 0:01:52]} 21. Rh4 {[%emt 0:01:08] [#]} Rc3 {[%emt 0:02:29]} (21... Ne7 $1 $19 22. Qb2 Ng6) 22. Ne2 {[%emt 0:00:59]} Rc7 {[%emt 0:02:24]} 23. Bg3 {[%emt 0:01:32]} Rd7 {[%emt 0:00:44]} 24. Qg5 {[%emt 0:02:22]} (24. Rd4 $17) 24... Ne7 {[%emt 0:10:29]} 25. Be5 $2 {[%emt 0:06:30]} (25. Rc4 $17) 25... Ng6 {[%emt 0:05:57]} 26. Bxf6 {[%emt 0:01:29]} gxf6 {[%emt 0:04:21]} 27. Qg3 {[%emt 0:00:53]} Qb6+ {[%emt 0:01:15]} 28. Kf1 {[%emt 0:02:06]} Rfd8 {[%emt 0:01:34]} 29. Re1 {[%emt 0:00:44]} Rd1 {[%emt 0:02:24]} 30. Rc4 {[%emt 0:00:43]} Qa5 {[%emt 0:07:07]} 31. Nc3 {[%emt 0:01:43]} Rxe1+ {[%emt 0:02:30]} 32. Kxe1 {[%emt 0:00:57]} (32. Qxe1 $142 Kg7 33. h3) 32... Qa3 {[%emt 0:10:13]} 33. Ne4 {[%emt 0:01:02]} Qxa2 {[%emt 0:04:21]} 34. Qc7 {[%emt 0:00:27]} Qa1+ {[%emt 0:01:17]} 35. Rc1 {[%emt 0:00:53]} Qd4 {[%emt 0:00:13]} 36. Ke2 f5 {[%emt 0:02:03]} 37. Ng5 {[%emt 0:00:54]} Qd2+ {[%emt 0:02:08]} 38. Kf1 {[%emt 0:00:05]} Qxg5 {[%emt 0:00:16]} 39. Rc2 {[%emt 0:00:55]} Qe7 {[%emt 0:01:28]} 40. Qa5 {[%emt 0:00:42]} Qd6 {[%emt 0:00:37]} 41. Rc7 {[%emt 0:01:23]} f4 $19 {[%emt 0:01:05]} 42. Rc1 {[%emt 0:01:00]} Qd3+ {[%emt 0:00:20]} 0-1

[Event "EYTCC Open U12 2018"]
[Site "Bad Blankeburg"]
[Date "2018.07.16"]
[Round "6"]
[White "Deuer, Marius"]
[Black "Spizharny, Mikhail"]
[Result "0-1"]
[ECO "B40"]
[WhiteElo "1834"]
[BlackElo "2015"]
[Annotator "NA RC"]
[PlyCount "62"]
[EventDate "2018.07.12"]
[EventType "swiss"]
[EventCountry "GER"]
[SourceTitle "playchess.com"]
[Source "ChessBase"]
[SourceQuality "1"]
[TimeControl "40/5400+30:1800+30"]

1. e4 {[%emt 0:00:00]} c5 {[%emt 0:00:00]} 2. Nf3 {[%emt 0:00:00]} e6 {[%emt 0:00:00]} 3. c3 {[%emt 0:00:00]} Nf6 {[%emt 0:00:01]} 4. e5 {[%emt 0:00:00]} Nd5 {[%emt 0:00:13]} 5. d4 {[%emt 0:00:00]} cxd4 {[%emt 0:00:11]} 6. cxd4 {[%emt 0:00:00]} d6 {[%emt 0:00:09]} 7. Bc4 {[%emt 0:00:06]} Nc6 {[%emt 0:00:12]} 8. O-O {[%emt 0:00:12]} Be7 {[%emt 0:00:37]} 9. Bd2 {[%emt 0:00:18] B22: Sicilian: 2 c3} (9. Qe2 O-O 10. a3 Bd7 11. exd6 Bxd6 12. Nc3 Nce7 13. Ne4 Bc6 14. Ne5 Rc8 15. Rd1 Bb8 16. Ng5 Be8 17. Bd3 Nf6 18. Ngf3 Ned5 19. Bd2 a6 20. Rac1 Rxc1 21. Rxc1 Qb6 22. Nc4 Qd8 23. Nce5 Qb6 24. Nc4 Qd8 {½-½ (24) Vachier Lagrave,M (2789)-Caruana,F (2816) Leuven 2018}) 9... O-O {[%emt 0:03:14]} 10. Nc3 {[%emt 0:00:16]} Nb6 {[%emt 0:02:58]} 11. Bb3 {[%emt 0:05:25] LiveBook: 40 Games} d5 {[%emt 0:02:17]} 12. Ne2 {[%emt 0:12:28]} Bd7 $146 {[%emt 0:02:15]} ({Predecessor:} 12... a5 13. Bc2 Nc4 14. Bc1 Nb4 15. Bb1 a4 16. a3 Nc6 {½-½ (60) Thelen,A (2201)-Bergmann,M (2183) GER email 2013}) 13. Ne1 {[%emt 0:10:05]} ({White should play} 13. Nf4 $14) 13... Rc8 {[%emt 0:02:06]} 14. Rc1 {[%emt 0:01:33]} f6 {[%emt 0:04:02]} 15. exf6 {[%emt 0:13:18]} Bxf6 {[%emt 0:01:11]} 16. Bc3 {[%emt 0:00:40]} Be8 {[%emt 0:04:56]} 17. Nd3 {[%emt 0:02:46]} Nc4 {[%emt 0:06:48]} 18. Bxc4 {[%emt 0:05:11]} dxc4 {[%emt 0:00:10]} 19. Ne5 {[%emt 0:00:18]} (19. Nc5 $1 $11 Qe7 20. Nf4) 19... b5 {[%emt 0:07:21]} 20. f4 {[%emt 0:06:24]} (20. a3 $15) 20... Bh5 {[%emt 0:04:19]} 21. g4 {[%emt 0:10:08]} Be8 {[%emt 0:04:08]} 22. b4 {[%emt 0:07:15]} Qd5 {[%emt 0:03:58]} 23. f5 {[%emt 0:04:55]} Bg5 {[%emt 0:05:29]} 24. Nf4 {[%emt 0:01:22]} Qe4 {[%emt 0:02:53]} 25. Nxe6 $2 {[%emt 0:03:15]} (25. Qe1 exf5 26. Qxe4 fxe4 27. Ne6 Rxf1+ 28. Rxf1) 25... Be3+ {[%emt 0:02:29]} 26. Rf2 {[%emt 0:01:22]} Nxe5 {[%emt 0:01:07]} 27. dxe5 {[%emt 0:01:36]} Bc6 {[%emt 0:01:20]} 28. Kf1 {[%emt 0:00:13]} Bxc1 {[%emt 0:02:54]} 29. Nxf8 {[%emt 0:01:44]} Rxf8 {[%emt 0:01:12]} 30. Qc2 Qh1+ {[%emt 0:02:18]} 31. Ke2 {[%emt 0:05:22]} Be4 {[%emt 0:00:29]} 0-1